Cogmind - Beta 15 @@@ ROGUE MODE // 2025.05.10 @ 16:47:15 Player: LightKnight Result: Destroyed by P-60 Hacker with Shock Rifle Performance ------------- Evolutions (2) 1000 Regions Visited (7) 1400 Robots Destroyed (62) 310 Value Destroyed (3207) 3207 Prototype IDs (1) 20 Alien Tech Used (0) 0 Bonus (2220) 2220 TOTAL SCORE: 8157 Bonus ------- High Alert Combat Kills 841 Follower Combat Kills 479 Entered Garrisons 400 Used RIF Installer 500 Cogmind --------- Core Integrity 0/550 Matter 113/300 Energy 100/100 System Corruption 3% Temperature Warm (129) Movement Treading (160) Location -8/Garrison Parts ------- > --- POWER (1) -------- Fusion Compressor > --- PROPULSION (3) --- Light Treads Light Treads > --- UTILITY (5) ------ Improved Heat Sink Improved Heat Sink Large Storage Unit Launcher Guidance Computer > --- WEAPON (2) ------- Heavy Laser > --- INVENTORY (15) --- Compact Matter Pod (150) Target Analyzer Hardened Medium Armor Plating Authchip [R/Combat] Relay Coupler [Swarmer] (22) Relay Coupler [Brawler] (32) Relay Coupler [Sentry] (20) Peak State ------------ > --- POWER ------------ Enhanced Nuclear Core > --- PROPULSION ------- Light Treads Light Treads Light Treads > --- UTILITY ---------- Improved Heat Sink Large Storage Unit Hardened Medium Armor Plating Improved Hardlight Generator Improved Hacking Suite > --- WEAPON ----------- Gauss Cannon Gauss Cannon > --- INVENTORY -------- Enhanced Nuclear Core Fusion Compressor Light Treads Light Treads VSS Leg Improved Heat Sink Small Storage Unit Improved Particle Charger Light Armor Plating Authchip [R/Combat] Beam Rifle Gauss Cannon Long-range Missile Launcher [Rating: 37] Favorites ----------- Power Enhanced Nuclear Core Engine Ion Engine Power Core Enhanced Nuclear Core Propulsion Light Treads Treads Light Treads Leg Aluminum Leg Utility Improved Heat Sink Device Improved Heat Sink Storage Large Storage Unit Processor Launcher Guidance Computer Hackware Improved Hacking Suite Protection Hardened Medium Armor Plating Weapon Gauss Cannon Energy Gun EM Pulse Gun Energy Cannon EM Pulse Cannon Ballistic Gun Assault Rifle Ballistic Cannon Gauss Cannon Launcher Long-range Missile Launcher Build | -11 -10 -10 -10 -8 -8 -8 -8 ------- Run | Yrd Mat Min Sub Mat Gar Mat Gar Slots Evolved 4 | . . . . 4 . . . Power . | . . . . . . . . Propulsion 1 | . . . . 1 . . . Utility 3 | . . . . 3 . . . Weapon . | . . . . . . . . Parts Attached 50 | 1 1 1 . 8 22 . 17 Power 3 | . . . . 1 1 . 1 Engine . | . . . . . . . . Core 3 | . . . . 1 1 . 1 Reactor . | . . . . . . . . Propulsion 13 | . . . . 3 5 . 5 Treads 11 | . . . . 2 4 . 5 Leg 2 | . . . . 1 1 . . Wheel . | . . . . . . . . Hover . | . . . . . . . . Flight . | . . . . . . . . Utility 21 | . 1 . . 2 12 . 6 Device 12 | . 1 . . 2 6 . 3 Storage 1 | . . . . . 1 . . Processor 1 | . . . . . . . 1 Hackware 1 | . . . . . 1 . . Protection 6 | . . . . . 4 . 2 Artifact . | . . . . . . . . Weapon 13 | 1 . 1 . 2 4 . 5 Energy Gun 5 | . . 1 . . 1 . 3 Energy Cannon 2 | . . . . . . . 2 Ballistic Gun 1 | 1 . . . . . . . Ballistic Cannon 4 | . . . . 2 2 . . Launcher 1 | . . . . . 1 . . Special Weapon . | . . . . . . . . Impact Weapon . | . . . . . . . . Slashing Weapon . | . . . . . . . . Piercing Weapon . | . . . . . . . . Special Melee Weapon . | . . . . . . . . Unidentified Prototypes 1 | . . . . 1 . . . Parts Lost 22 | . . . 1 . 9 . 12 Power 1 | . . . . . . . 1 Propulsion 5 | . . . . . 2 . 3 Utility 9 | . . . . . 5 . 4 Weapon 7 | . . . 1 . 2 . 4 Highest Loss Streak 8 | . . . 1 . 3 . 8 To Critical Strikes . | . . . . . . . . Average Backups 12 | 6 6 7 8 6 12 15 13 Power 1 | 1 1 1 1 . 1 1 . Propulsion 2 | 4 4 3 3 2 2 3 2 Utility 5 | . . 1 2 1 4 8 8 Weapon 2 | 1 1 2 2 2 3 3 2 Tool/Special . | . . . . . . . . Unused Backups 25 | . 5 4 1 1 5 . 9 Power 3 | . 1 1 . 1 . . . Propulsion 6 | . 2 2 . . 1 . 1 Utility 11 | . 1 . . . 2 . 8 Weapon 5 | . 1 1 1 . 2 . . Tool/Special . | . . . . . . . . Average Slot Usage (%) 94 | . 87 100 100 82 92 100 97 Engine 1 | . 14 14 14 3 . . . Core 8 | . . . . 5 9 9 8 Treads 23 | . . . . 6 24 27 26 Leg 3 | . 28 28 28 19 1 . . Device 23 | . 2 14 14 21 22 27 25 Storage 9 | . 14 14 14 9 9 9 9 Hackware 1 | . . . . . 1 . . Protection 6 | . . . . . 5 9 8 Energy Gun 2 | . 14 25 28 4 . . 2 Energy Cannon 2 | . . . . . . . 10 Ballistic Cannon 12 | . . . . 9 16 18 3 Peak Build Rating 37 | 6 7 8 8 24 37 36 36 Average Rating 31 | 6 6 7 7 17 32 36 33 On Entrance 16 | 6 6 7 8 7 24 36 36 Naked Turns . | . . . . . . . . Heaviest Build 63 | 14 15 16 16 33 63 56 56 Greatest Support 60 | 20 20 20 20 40 60 60 60 Greatest Overweight (x) 1 | . . . . . 1 . 1 Average Overweight (x) . | . . . . . . . . Largest Inventory Capacity 15 | 8 8 8 8 8 15 15 15 Average Capacity 13 | 8 8 8 8 8 13 15 15 Most Carried 15 | 6 8 8 8 7 15 15 15 Average Carried 12 | 6 6 7 8 6 12 15 13 Final Capacity 15 | 8 8 8 8 8 15 15 15 Final Carried 15 | 6 8 8 8 7 15 15 7 Class Distribution -------------------- 56% | Scavenger-Mutant 43% | Mutant Dominant Class ---------------- Mutant | -10/Materials Mutant | -10/Mines Mutant | -10/Subcaves Mutant | -8/Materials Scavenger-Mutant | -8/Garrison Scavenger-Mutant | -8/Materials Mutant | -8/Garrison Resources | -11 -10 -10 -10 -8 -8 -8 -8 ----------- Run | Yrd Mat Min Sub Mat Gar Mat Gar Matter Collected 2245 | 200 19 22 . . 1504 122 378 Remotely . | . . . . . . . . Salvage Created 1902 | . 43 106 . . 983 44 726 Parts 112 | . 8 5 . . 68 1 30 Haulers Intercepted . | . . . . . . . . Recyclers Shooed . | . . . . . . . . Parts Field Recycled . | . . . . . . . . Retrieved Matter . | . . . . . . . . Parts Self-Destructed . | . . . . . . . . Prevented . | . . . . . . . . Kills | -11 -10 -10 -10 -8 -8 -8 -8 ------- Run | Yrd Mat Min Sub Mat Gar Mat Gar Combat Hostiles Destroyed 59 | . . 2 . . 39 1 17 Guns 4 | . . 2 . . . . 2 Cannons 43 | . . . . . 30 1 12 AOE 11 | . . . . . 9 . 2 Classes Destroyed 11 | . 2 1 . . 5 . 3 Builder 1 | . 1 . . . . . . Watcher 1 | . 1 . . . . . . Swarmer 18 | . . . . . 18 . . Grunt 19 | . . 2 . . 12 1 4 Brawler 4 | . . . . . . . 4 Duelist 1 | . . . . . 1 . . Sentry 11 | . . . . . 6 . 5 Specialist 2 | . . . . . 2 . . Hunter 1 | . . . . . . . 1 Programmer 1 | . . . . . . . 1 Behemoth 3 | . . . . . 1 . 2 Best Kill Streak 12 | . 2 2 . . 12 1 5 Combat Bots Only 12 | . . 2 . . 12 1 5 Max Kills in Single Turn 3 | . 1 1 . . 3 1 1 Gunslinging . | . . . . . . . . Exploded 3 | . . . . . 3 . 1 Melee . | . . . . . . . . Uniques/NPCs Destroyed . | . . . . . . . . Combat | -11 -10 -10 -10 -8 -8 -8 -8 -------- Run | Yrd Mat Min Sub Mat Gar Mat Gar Hostile Shots Fired 360 | . . 5 6 . 190 2 157 Missed 114 | . . . 3 . 59 1 51 Hits 246 | . . 5 3 . 131 1 106 Melee 6 | . . . . . 6 . . Projectile 240 | . . 5 3 . 125 1 106 Critical Strikes 12 | . . . 1 . 4 . 7 Damage Taken 4240 | . . 76 49 . 1865 25 2225 Core 578 | . . 27 . . 289 . 262 Absorbed by Shields 280 | . . . . . 198 9 73 Ignored by Resistances 101 | . . . . . 72 . 29 Core Remaining (%) 94 | 100 . . 89 . . . . Volleys Fired 225 | . 4 4 . . 142 6 69 Largest 2 | . 2 2 . . 2 1 2 Hottest 138 | . 60 60 . . 80 40 138 Shots Fired 365 | . 7 8 . . 229 6 115 Gun 77 | . 7 8 . . 24 . 38 Cannon 271 | . . . . . 199 6 66 Launcher 17 | . . . . . 6 . 11 Special . | . . . . . . . . Kinetic 237 | . 3 4 . . 199 6 25 Thermal 62 | . . . . . 24 . 38 Explosive 17 | . . . . . 6 . 11 Electromagnetic 49 | . 4 4 . . . . 41 Robot Hit Streak 26 | . 2 5 . . 18 4 26 Robot Miss Streak 4 | . 3 1 . . 4 3 4 Penetration Max 1 | . . . . . . 1 . Secondary Targets 1 | . . 1 . . . . . Max Gunslinging Chain 1 | . . 1 . . . . . Shots Hit Robots 223 | . 3 5 . . 133 3 79 Core Hits 96 | . 2 4 . . 57 1 32 Critical Kills . | . . . . . . . . Critical Parts Destroyed . | . . . . . . . . Critical Strikes 22 | . . 1 . . 17 1 3 Burn 6 | . . . . . 4 . 2 Blast 15 | . . . . . 13 1 1 Corrupt 1 | . . 1 . . . . . Melee Attacks . | . . . . . . . . Impact . | . . . . . . . . Slashing . | . . . . . . . . Piercing . | . . . . . . . . Sneak Attacks . | . . . . . . . . Combat Hostiles . | . . . . . . . . Follow-up Attacks . | . . . . . . . . Damage Inflicted 7460 | . 68 67 . . 4430 113 2782 Guns 1199 | . 68 67 . . 306 . 758 Cannons 4362 | . . . . . 3157 113 1092 Explosions 1893 | . . . . . 961 . 932 Melee . | . . . . . . . . Ramming 6 | . . . . . 6 . . Kinetic 3818 | . 13 12 . . 3157 113 523 Thermal 1114 | . . . . . 306 . 808 Explosive 1843 | . . . . . 961 . 882 Electromagnetic 679 | . 55 55 . . . . 569 Impact . | . . . . . . . . Slashing . | . . . . . . . . Piercing . | . . . . . . . . Highest Corruption 3 | . . . . . . . 3 Average Corruption 1 | . . . . . . . 1 Corruption Purged . | . . . . . . . . Corruption Blocked . | . . . . . . . . Effects 5 | . . . . . . . 5 Message Errors 2 | . . . . . . . 2 Matter Fused 3 | . . . . . . . 3 Overload Shots . | . . . . . . . . Overflow Damage 74 | . . . . . 74 . . Projectiles 35 | . . . . . 35 . . Explosions 39 | . . . . . 39 . . Melee . | . . . . . . . . Knockbacks 5 | . . . . . 4 . 1 Impact . | . . . . . . . . Kinetic 5 | . . . . . 4 . 1 Secondary . | . . . . . . . . Self-Inflicted Damage 20 | . . . . . 16 . 4 Shots 2 | . . . . . 1 . 1 Rammed 4 | . . . . . 3 . 1 Targets Rammed 4 | . . . . . 3 . 1 Kicked . | . . . . . . . . Crushed . | . . . . . . . . Highest Temperature 462 | . . 47 . . 21 . 462 Average Temperature 109 | . . 22 . . 11 . 126 Received Heat Transfer 1580 | . . 45 . . 543 12 980 Effects 2 | . . . . . . . 2 Shutdowns 1 | . . . . . . . 1 Matter Decay 1 | . . . . . . . 1 Siege Activations . | . . . . . . . . Martial Activations . | . . . . . . . . Shielding Activations . | . . . . . . . . Robots Disrupted . | . . . . . . . . Combat Hostiles . | . . . . . . . . Robots Corrupted . | . . . . . . . . Combat Hostiles . | . . . . . . . . Parts Fried . | . . . . . . . . Impact Corruptions . | . . . . . . . . Robots Melted 3 | . . . . . 2 . 1 Combat Hostiles 1 | . . . . . . . 1 Parts Melted 6 | . . . . . 4 . 2 Heat Transferred 2566 | . . . . . 1073 . 1493 Parts Sabotaged . | . . . . . . . . Parts Stolen . | . . . . . . . . Parts Stripped . | . . . . . . . . Power Chain Reactions 1 | . . . . . . . 1 Alert | -11 -10 -10 -10 -8 -8 -8 -8 ------- Run | Yrd Mat Min Sub Mat Gar Mat Gar Maximum Alert Level 5 | . . . . . 5 4 4 Low Security (%) 16 | 100 100 100 . 100 15 . . Level 1 4 | . . . . . 7 . . Level 2 5 | . . . . . 6 . 11 Level 3 46 | . . . . . 30 84 77 Level 4 12 | . . . . . 15 15 10 Level 5 13 | . . . . . 24 . . High Security . | . . . . . . . . Max Security . | . . . . . . . . Peak Influence 2403 | . 25 51 . 4 2403 1171 1133 Initial 1171 | . . 1 . . 2 1171 581 Average 922 | . 3 12 . . 1059 949 924 Influence Increases 3494 | . 25 50 . 4 2491 152 772 Destroy 0b10 Robot/C 1560 | . . 40 . . 1000 80 440 Destroy 0b10 Robot/NC 25 | . 10 . . . 10 5 . Destroy Leader 62 | . 2 10 . . 30 10 10 Allied During Kill 155 | . . . . . 86 23 46 Successful Hack 53 | . 13 . . 4 15 . 21 Disable Machine 60 | . . . . . 30 30 . Anti-Garrison Action 1100 | . . . . . 950 . 150 Destroy Structure 254 | . . . . . 160 4 90 Lose Combat Pursuer 225 | . . . . . 210 . 15 Influence Decreases 2381 | . 20 55 . . 92 1660 554 Entered New Map 1552 | . . 4 . . 2 1232 314 Time Decay 499 | . 20 51 . . . 428 . Lost Part 210 | . . . . . 90 . 120 Lost Ally 120 | . . . . . . . 120 Squads Dispatched 2 | . 1 . . . . 1 . Investigation 1 | . 1 . . . . . . Extermination . | . . . . . . . . Reinforcement . | . . . . . . . . Assault 1 | . . . . . . 1 . Garrison . | . . . . . . . . Intercept . | . . . . . . . . Searches Triggered . | . . . . . . . . Construction Impeded . | . . . . . . . . Haulers Reinforced . | . . . . . . . . Active Scanning Responses . | . . . . . . . . Cargo Convoy Interrupts . | . . . . . . . . Stealth | -11 -10 -10 -10 -8 -8 -8 -8 --------- Run | Yrd Mat Min Sub Mat Gar Mat Gar Distress Signals . | . . . . . . . . Communications Jammed . | . . . . . . . . Distress Signals . | . . . . . . . . Times Spotted 88 | . 1 1 3 . 53 4 26 Peak Tracking Total 6 | . 1 1 3 . 6 4 4 Tactical Retreats 13 | . . . . . 12 . 1 Traps | -11 -10 -10 -10 -8 -8 -8 -8 ------- Run | Yrd Mat Min Sub Mat Gar Mat Gar Traps Triggered 6 | . 1 . . . 3 . 2 Indirectly . | . . . . . . . . Trap Hack Attempts . | . . . . . . . . Triggered . | . . . . . . . . Disarmed . | . . . . . . . . Reprogrammed . | . . . . . . . . Reused . | . . . . . . . . Traps Extracted . | . . . . . . . . Installed . | . . . . . . . . Triggered . | . . . . . . . . Machines | -11 -10 -10 -10 -8 -8 -8 -8 ---------- Run | Yrd Mat Min Sub Mat Gar Mat Gar Machines Disabled 9 | . . . . . 4 2 3 Max in Single Turn 1 | . . . . . 1 . 1 Garrison Relay 5 | . . . . . 2 . 3 Machines Repaired . | . . . . . . . . Machines Dismantled . | . . . . . . . . Machines Sabotaged . | . . . . . . . . Overloaded Fab Kills . | . . . . . . . . Hacking | -11 -10 -10 -10 -8 -8 -8 -8 --------- Run | Yrd Mat Min Sub Mat Gar Mat Gar Machines Accessed 8 | . 1 . . 1 3 1 2 Terminals 6 | . 1 . . . 3 . 2 Fabricators . | . . . . . . . . Repair Stations . | . . . . . . . . Recycling Units . | . . . . . . . . Scanalyzers . | . . . . . . . . Garrison Access 2 | . . . . 1 . 1 . Total Hacks 17 | . 4 . . 1 6 1 5 Successful 8 | . 2 . . 1 2 1 2 Failed 9 | . 2 . . . 4 . 3 Catastrophic 2 | . . . . . 1 . 1 Database Lockouts . | . . . . . . . . Manual 4 | . 4 . . . . . . Terminals 15 | . 4 . . . 6 . 5 Fabricators . | . . . . . . . . Repair Stations . | . . . . . . . . Recycling Units . | . . . . . . . . Scanalyzers . | . . . . . . . . Garrison Access 2 | . . . . 1 . 1 . Terminal Hacks 5 | . 1 . . . 2 . 2 Open Door 2 | . . . . . 1 . 1 Branch Access Points 1 | . 1 . . . . . . Emergency Access Points 2 | . . . . . 1 . 1 Fabricator Hacks . | . . . . . . . . Repair Station Hacks . | . . . . . . . . Recycling Unit Hacks . | . . . . . . . . Scanalyzer . | . . . . . . . . Garrison Access Hacks 2 | . . . . 1 . 1 . Unlock Access 2 | . . . . 1 . 1 . Unauthorized Hacks 1 | . 1 . . . . . . Terminals 1 | . 1 . . . . . . Botnet 1 | . 1 . . . . . . Fabricators . | . . . . . . . . Repair Stations . | . . . . . . . . Recycling Units . | . . . . . . . . Scanalyzers . | . . . . . . . . Garrison Access . | . . . . . . . . Data Cores Recovered . | . . . . . . . . Used . | . . . . . . . . Hacking Detections 3 | . . . . . 1 . 2 Full Trace Events 1 | . . . . . 1 . . Feedback Events . | . . . . . . . . Feedback Blocked . | . . . . . . . . Robot Schematics Acquired . | . . . . . . . . Robots Built . | . . . . . . . . Authchips . | . . . . . . . . Time . | . . . . . . . . Total Robot Build Rating . | . . . . . . . . Part Schematics Acquired . | . . . . . . . . Parts Built . | . . . . . . . . Authchips . | . . . . . . . . Time . | . . . . . . . . Total Part Build Rating . | . . . . . . . . Parts Repaired . | . . . . . . . . Time . | . . . . . . . . Parts Recycled . | . . . . . . . . Recycled Matter . | . . . . . . . . Retrieved Matter . | . . . . . . . . Retrieved Components . | . . . . . . . . Parts Scanalyzed . | . . . . . . . . Part Schematics Acquired . | . . . . . . . . Parts Damaged . | . . . . . . . . Bothacking | -11 -10 -10 -10 -8 -8 -8 -8 ------------ Run | Yrd Mat Min Sub Mat Gar Mat Gar Used RIF Installer 1 | . . . . . 1 . . Robots Hacked . | . . . . . . . . Non-combat . | . . . . . . . . Combat . | . . . . . . . . Robot Hacks Applied . | . . . . . . . . Relay Couplers Released 22 | . . . . . 9 . 13 Machine Destruction 22 | . . . . . 9 . 13 Fabnet Peak Effective % . | . . . . . . . . Robots Rewired 6 | . . . . . 3 . 3 Allies Hacked . | . . . . . . . . Hacks Repelled . | . . . . . . . . Allies | -11 -10 -10 -10 -8 -8 -8 -8 -------- Run | Yrd Mat Min Sub Mat Gar Mat Gar Total Allies 8 | . . . . . 5 . 3 Largest Group 5 | . . . . . 5 3 3 Highest-Rated Group 142 | . . . . . 142 94 94 Highest-Rated Ally 39 | . . . . . 39 39 39 Total Orders . | . . . . . . . . Ally Attacks 96 | . . . . . 50 16 30 Total Damage 2149 | . . . . . 1167 368 614 Kills 20 | . . . . . 11 4 5 Allies Corrupted 1 | . . . . . . . 1 Allies Melted . | . . . . . . . . Intel | -11 -10 -10 -10 -8 -8 -8 -8 ------- Run | Yrd Mat Min Sub Mat Gar Mat Gar Active Infowar (turns) 599 | . 26 228 26 69 250 . . Structural 599 | . 26 228 26 69 250 . . Robot Analysis Total . | . . . . . . . . Derelict Logs Recovered . | . . . . . . . . Drone Launches . | . . . . . . . . Drone Recoveries . | . . . . . . . . Exploration | -11 -10 -10 -10 -8 -8 -8 -8 ------------- Run | Yrd Mat Min Sub Mat Gar Mat Gar Turns Passed 5591 | 2 179 228 26 69 2985 1054 1048 Spaces Moved 2434 | 1 138 175 22 37 1512 85 464 Core . | . . . . . . . . Treads 2077 | . . . . 17 1511 85 464 Legs 357 | 1 138 175 22 20 1 . . Wheels . | . . . . . . . . Hover . | . . . . . . . . Flight . | . . . . . . . . Fastest Speed 120 | 120 120 120 120 120 160 160 160 Average Speed 158 | 120 120 120 120 138 165 160 161 Slowest Speed 240 | 120 120 120 120 160 240 160 240 Overloaded Moves . | . . . . . . . . Propulsion Burnouts . | . . . . . . . . Robots Hopped . | . . . . . . . . Potential Cave-ins . | . . . . . . . . Cave-ins Triggered . | . . . . . . . . Exploration Rate (%) 30 | 2 20 58 3 4 95 9 51 Regions Visited 7 Branch Regions 2 Pre-discovered Areas . | . . . . . . . . Known Exits Taken 3 | . 1 . . 1 . 1 . Unknown Exits Taken 3 | 1 . 1 1 . . . . Scrap Searched . | . . . . . . . . Spaces Dug . | . . . . . . . . Terrain Destroyed 141 | . . . . . 53 2 86 Melee . | . . . . . . . . Projectile 4 | . . . . . 2 2 . AOE 137 | . . . . . 51 . 86 Terrain Rammed . | . . . . . . . . Walls Destroyed . | . . . . . . . . Machines Disabled . | . . . . . . . . Actions | -11 -10 -10 -10 -8 -8 -8 -8 --------- Run | Yrd Mat Min Sub Mat Gar Mat Gar Total 3812 | 1 144 187 21 55 1758 997 649 Wait 967 | . . . . . 8 907 52 Move 2426 | . 137 174 21 36 1510 84 464 Hop . | . . . . . . . . Pick Up 39 | . 2 3 . 3 24 . 7 Fast Attach 19 | . 1 1 . 4 12 . 1 Attach 19 | . . . . 3 6 . 10 Detach 5 | . . 1 . 3 1 . . Swap 21 | 1 . . . 2 8 . 10 Drop 40 | . . 4 . 4 21 . 11 Fire 225 | . 4 4 . . 142 6 69 Melee . | . . . . . . . . Ram . | . . . . . . . . Kick . | . . . . . . . . Crush 4 | . . . . . 3 . 1 Escape Stasis . | . . . . . . . . Rewire 47 | . . . . . 23 . 24 Trap . | . . . . . . . . Miscellaneous . | . . . . . . . . Route ------- -11/Scrapyard -10/Materials -10/Mines -10/Subcaves -8/Materials -8/Garrison (discovered 4 exits: *Mat x4) -8/Materials -8/Garrison (discovered 1 exit: [*Fac]) History --------- Turn | Location | Event 3 | -11/Scrapyard | Discovered new exit (range 0) 3 | -11/Scrapyard | Entered Materials 141 | -10/Materials | Identified exit to Mines 182 | -10/Materials | Entered Mines 308 | -10/Mines | Build established: Mutant 395 | -10/Mines | Discovered new exit (range 7) 410 | -10/Mines | Entered Subcaves 411 | -10/Subcaves | Approached by a straggling Scientist 413 | -10/Subcaves | Discovered new exit (range 15) 436 | -10/Subcaves | Ambushed by research squad 436 | -10/Subcaves | Entered Materials 436 | -8/Materials | Evolved 4 slots: Propulsion x1, Utility x3 503 | -8/Materials | Identified exit to Garrison 505 | -8/Materials | Entered Garrison 739 | -8/Garrison | Triggered checkpoint 793 | -8/Garrison | Triggered checkpoint 951 | -8/Garrison | Triggered checkpoint 1189 | -8/Garrison | Triggered checkpoint 1220 | -8/Garrison | Triggered checkpoint 1256 | -8/Garrison | Destroyed 12 combat bots 1442 | -8/Garrison | Triggered checkpoint 1476 | -8/Garrison | Lost 3 parts (1n1u1w) 1812 | -8/Garrison | Discovered new exit (range 14) 1873 | -8/Garrison | Triggered checkpoint 2052 | -8/Garrison | Rescued a captive Derelict 2060 | -8/Garrison | Rescued a captive Derelict 2169 | -8/Garrison | Triggered checkpoint 2194 | -8/Garrison | Discovered new exit (range 5) 2271 | -8/Garrison | Discovered new exit (range 8) 2328 | -8/Garrison | Build established: Scavenger-Mutant 2351 | -8/Garrison | Triggered checkpoint 2645 | -8/Garrison | Triggered checkpoint 2815 | -8/Garrison | Spotted B-75 Beast 2819 | -8/Garrison | Spotted B-75 Beast 2830 | -8/Garrison | Allies destroyed B-75 Beast 2857 | -8/Garrison | Core integrity fell below 50% 2857 | -8/Garrison | Destroyed B-75 Beast 3054 | -8/Garrison | Discovered new exit (range 7) 3139 | -8/Garrison | Garrison Relay disabled 3333 | -8/Garrison | Installed Relay Interface Framework 3405 | -8/Garrison | Garrison Relay disabled 3490 | -8/Garrison | Entered Materials 3490 | -8/Materials | Accompanied by 3 allies 4290 | -8/Materials | First assault squad dispatched 4542 | -8/Materials | Identified exit to Garrison 4544 | -8/Materials | Entered Garrison 4544 | -8/Garrison | Accompanied by 3 allies 4616 | -8/Garrison | Triggered checkpoint 4631 | -8/Garrison | Garrison Relay disabled 4846 | -8/Garrison | Triggered checkpoint 4975 | -8/Garrison | Garrison Relay disabled 5019 | -8/Garrison | Garrison Relay disabled 5036 | -8/Garrison | Build established: Mutant 5130 | -8/Garrison | Discovered new exit (range 3) 5164 | -8/Garrison | Spotted B-75 Beast 5164 | -8/Garrison | Spotted B-75 Beast 5474 | -8/Garrison | Triggered checkpoint 5477 | -8/Garrison | Destroyed B-75 Beast 5482 | -8/Garrison | Core integrity fell below 20% 5493 | -8/Garrison | Lost 8 parts (1p2n3u2w) 5584 | -8/Garrison | Destroyed B-75 Beast 5592 | -8/Garrison | Destroyed by P-60 Hacker with Shock Rifle Last Messages --------------- 05480_ Acquired 8 matter. 05482_ Acquired 5 matter. 05483_ The unstable cave ceiling collapses. 05490_ B-36 Bruiser destroyed. 05496_ Acquired 33 matter. 05497_ The unstable cave ceiling collapses. 05508_ Lrn. Missile Launcher destroyed. 05517_ Acquired 2 matter. 05533_ Acquired 45 matter. 05536_ Acquired Hvy. Laser. 05543_ Lgt. Treads destroyed. 05556_ P-60 Hacker resets B-75 Beast, system corruption cleaned. 05567_ Critical hit (Meltdown: +330). 05567_ Hvy. Laser destroyed. 05569_ Overheating: Matter decay (-34). 05570_ B-75 Beast suffers critical hit (Burn). 05574_ P-60 Hacker resets M-28 Smith, system corruption cleaned. 05575_ H-55 Commando destroyed. 05582_ Hrd. Medium Armor Plating destroyed. 05584_ B-75 Beast destroyed. Map ----- +----------------------------------------------------+ | ????# %[%%!!!!=%%*%#??????? | | ????# *[%=%*/=%/[%=#??????? | | ????# ######### ###+################# ##??????? | | ????# ????????# #???????????????????# #???????? | | ????# ???????## #???????????????????# #???????? | | ?#### ???????# ##??????????????????# #???????? | | ?#[[# ##??#### ################### ##??????? | | ?# [#??# #??????? | | ?# [##?# #??????? | | ?# [ #" ##### ######!!!####??????? | | ?# % #? ????# #???#""!""#????????? | | ?# % ## ###??# ##??#######????????? | | ?# ! ? ???# !#?????????????????? | | ?# !#??# % ##???# !#?????????????????? | | ?#### ##??## # ##### !#?????????????????? | | ????## #???# +##?????????????????? | | ?????#!#????# # ######???????????????????? | | ?????#%#?????# # #?????????????????????????? | | ??####%#####???# #?# #??###?##########?????????? | | ??# #???# #?# #?## ###""""""""#?????????? | | ??# #???# % #?# #?# ! "l"" " "#?????????? | | ??# ##### ### ####""#%" ["["#?????????? | | ??# " * % ![= m "#?????????? | | ?#"" """ =+% < = % #?????????? | | ?#"# " #####[!% ####p *[ ["#?????????? | | ?#"# #???#######??#@ % m![] "#?????????? | | ?#?###" #????????????## % =]! [" "#?????????? | | ????"""#####?????????????#"%" "" "["#?????????? | | ???###"??????????????????#"""""""""""""#?????????? | | ?????#"??????????????????###############?????????? | | ?????????????????????????????????????????????????? | | ?????????????????????????????????????????????????? | | ?????????????????????????????????????????????????? | | ?????????????????????????????????????????????????? | | ?????????????????????????????????????????????????? | | ?????????????????????????????????????????????????? | | | | | | | | | | | | | | | | | | | | | | | | | | | | | +----------------------------------------------------+ Best States ------------- Heat Dissipation 59 Energy Generation 25 Energy Capacity 300 Matter Stores 300 Matter Capacity 300 Sight Range 16 Terrain Scan Density 10 Armor Coverage 450 Resistance: KI 20 Resistance: TH 20 Evasion (%) 55 Launcher Accuracy 20 Recoil Reduction 3 Energy Filtering 30 Particle Charging 20 Offensive Hacking 12 Authchip Count 1 Item Schematics ----------------- None Robot Schematics ------------------ None Fabricated ------------ Nothing Repaired ---------- Nothing Alien Tech Used ----------------- None Achievements -------------- None Challenges ------------ None Game ------ Seed ShockCloakingShotgun Manual? 0 Play Time 00:40:05 Cumulative 266.1 hours Start 2025.05.10 @ 16:08:22 End 2025.05.10 @ 16:47:15 Sessions 1 Manual Loads 0 Difficulty Rogue Special Mode None Game No. 189 Rogue 189 Adventurer 0 Explorer 0 Win Type - Total 21 Types 17/0/2/2/0/0/0/0/0/0 Lore% 83 Gallery% 71 Achievement% 62 Wizard Run 0 Options --------- Layout 0 ASCII 1 Keyboard 1 Movement Arrows Keybinds 0 Fullscreen 1 Font 18/Terminus Map View 76x50 Zoom Use 0% Tactical HUD 1 Map Filters NONE Filters NONE Steam 1 RUN: 1f69d825-ffef-4fe8-b749-54cef66f9787